fUSD/lending_fUSD_20250223
["ID","MTS","AMOUNT","RATE_DAILY","PERIOD"]
[354211817,1740349865584,-1420.41,0.00016684,2]
[354211818,1740349865593,-535.56,0.00016684,2]
[354211819,1740349865603,-500.0,0.00016684,2]
[354211820,1740349865612,-1222.57,0.00016684,2]
[354211821,1740349865622,-500.0,0.00016684,2]
[354211822,1740349865632,-786.04,0.00016684,2]
[354211823,1740349865641,-3008.1,0.00016684,2]
[354211824,1740349865651,-582.21,0.00016684,2]
[354211825,1740349865662,-1442.37,0.00016684,2]
[354211826,1740349865671,-500.0,0.00016684,2]
[354211827,1740349865681,-507.67,0.00016684,2]
[354211828,1740349865691,-1449.59,0.00016684,2]
[354211829,1740349865700,-500.0,0.00016684,2]
[354211830,1740349865710,-500.0,0.00016684,2]
[354211831,1740349865719,-1488.88,0.00016684,2]
[354211832,1740349865729,-1426.91,0.00016684,2]
[354211833,1740349865738,-500.0,0.00016684,2]
[354211834,1740349865747,-2596.96,0.00016684,2]
[354211835,1740349865757,-1264.1,0.00016684,2]
[354211836,1740349865766,-1936.37,0.00016684,2]
[354211837,1740349865775,-500.0,0.00016684,2]
[354211838,1740349865785,-500.0,0.00016684,2]
[354211839,1740349865795,-2442.27,0.00016684,2]
[354211840,1740349865804,-2283.06,0.00016684,2]
[354211841,1740349865814,-3372.27,0.00016684,2]
[354211842,1740349865823,-500.0,0.00016684,2]
[354211843,1740349865833,-500.0,0.00016684,2]
[354211844,1740349865842,-500.0,0.00016684,2]
[354211845,1740349865852,-1222.2,0.00016684,2]
[354211846,1740349865861,-1507.49,0.00016684,2]
[354211847,1740349865871,-602.88,0.00016684,2]
[354211848,1740349865881,-500.0,0.00016684,2]
[354211849,1740349865890,-1664.77,0.00016684,2]
[354211850,1740349865901,-500.0,0.00016684,2]
[354211851,1740349865911,-1154.78,0.00016684,2]
[354211852,1740349865921,-536.34,0.00016684,2]
[354211853,1740349865931,-1756.63,0.00016684,2]
[354211854,1740349865940,-730.7,0.00016684,2]
[354211855,1740349865950,-986.27,0.00016684,2]
[354211856,1740349865959,-1157.96,0.00016684,2]
[354211857,1740349865968,-1377.1,0.00016684,2]
[354211858,1740349865978,-1016.26,0.00016684,2]
[354211859,1740349865987,-923.34,0.00016684,2]
[354211860,1740349865997,-500.0,0.00016684,2]
[354211861,1740349866007,-1532.84,0.00016684,2]
[354211862,1740349866016,-500.0,0.00016684,2]
[354211863,1740349866025,-500.0,0.00016684,2]
[354211864,1740349866034,-1904.49,0.00016684,2]
[354211865,1740349866044,-500.0,0.00016684,2]
[354211866,1740349866054,-500.0,0.00016684,2]
[354211867,1740349866063,-500.0,0.00016684,2]
[354211868,1740349866072,-1326.46,0.00016684,2]
[354211869,1740349866082,-801.78,0.00016684,2]
[354211870,1740349866091,-612.54,0.00016684,2]
[354211871,1740349866100,-1334.47,0.00016684,2]
[354211872,1740349866110,-590.04,0.00016684,2]
[354211873,1740349866119,-1385.79,0.00016684,2]
[354211874,1740349866128,-500.0,0.00016684,2]
[354211875,1740349866138,-2494.38,0.00016684,2]
[354211876,1740349866147,-1090.53,0.00016684,2]
[354211877,1740349866156,-507.42,0.00016684,2]
[354211878,1740349866165,-500.0,0.00016684,2]
[354211879,1740349866175,-500.0,0.00016684,2]
[354211880,1740349866184,-500.0,0.00016684,2]
[354211881,1740349866193,-1543.81,0.00016684,2]
[354211882,1740349866202,-573.47,0.00016684,2]
[354211883,1740349866211,-1095.55,0.00016684,2]
[354211884,1740349866221,-649.03,0.00016684,2]
[354211885,1740349866230,-2049.23,0.00016684,2]
[354211886,1740349866239,-500.0,0.00016684,2]
[354211887,1740349866249,-646.72,0.00016684,2]
[354211888,1740349866258,-1521.96,0.00016684,2]
[354211889,1740349866267,-3220.12,0.00016684,2]
[354211890,1740349866276,-1456.53,0.00016684,2]
[354211891,1740349866285,-500.0,0.00016684,2]
[354211892,1740349866380,-500.0,0.00016684,2]
[354211893,1740349866389,-1723.53,0.00016684,2]
[354211894,1740349866398,-500.0,0.00016684,2]
[354211895,1740349866407,-2211.51,0.00016684,2]
[354211896,1740349866416,-2287.56,0.00016684,2]
[354211897,1740349866425,-1135.98,0.00016684,2]
[354211898,1740349866434,-743.91,0.00016684,2]
[354211899,1740349866443,-500.0,0.00016684,2]
[354211900,1740349866452,-498.85058932,0.00016684,2]
[354211901,1740349866462,-1305.88,0.00016684,2]
[354211902,1740349866471,-684.25,0.00016684,2]
[354211903,1740349866480,-3463.87,0.00016684,2]
[354211904,1740349866489,-500.0,0.00016684,2]
[354211905,1740349866498,-1527.29,0.00016684,2]
[354211906,1740349866510,-551.72398719,0.00016684,2]
[354211907,1740349866519,-500.0,0.00016684,2]
[354211908,1740349866528,-641.03,0.00016684,2]
[354211909,1740349866537,-1385.92,0.00016684,2]
[354211910,1740349866547,-3565.44,0.00016684,2]
[354211911,1740349866555,-500.0,0.00016684,2]
[354211912,1740349866564,-500.0,0.00016684,2]
[354211913,1740349866573,-500.0,0.00016684,2]
[354211914,1740349866583,-2201.89,0.00016684,2]
[354211915,1740349866592,-500.0,0.00016684,2]
[354211916,1740349866601,-798.67,0.00016684,2]
[354211917,1740349866610,-500.0,0.00016684,2]
[354211918,1740349866619,-3735.7,0.00016684,2]
[354211919,1740349866629,-500.0,0.00016684,2]
[354211920,1740349866638,-2015.41,0.00016684,2]
[354211921,1740349866647,-1466.3,0.00016684,2]
[354211922,1740349866656,-2161.56,0.00016684,2]
[354211923,1740349866665,-640.38,0.00016684,2]
[354211924,1740349866674,-1420.45,0.00016684,2]
[354211925,1740349866683,-500.0,0.00016684,2]
[354211926,1740349866693,-2440.94,0.00016684,2]
[354211927,1740349866702,-2120.49,0.00016684,2]
[354211928,1740349866711,-500.0,0.00016684,2]
[354211929,1740349866720,-833.49,0.00016684,2]
[354211930,1740349866731,-1351.27,0.00016684,2]
[354211931,1740349866740,-1892.36,0.00016684,2]
[354211932,1740349866749,-1018.29,0.00016684,2]
[354211933,1740349866758,-1914.53,0.00016684,2]
[354211934,1740349866767,-751.94,0.00016684,2]
[354211935,1740349866777,-500.0,0.00016684,2]
[354211936,1740349866786,-1195.11,0.00016684,2]
[354211937,1740349866797,-2313.01,0.00016684,2]
[354211938,1740349866806,-937.55,0.00016684,2]
[354211939,1740349866817,-1603.29,0.00016684,2]
[354211940,1740349866826,-2460.28,0.00016684,2]
[354211941,1740349866836,-150.0,0.00016684,2]
[354211942,1740349866846,-2684.81,0.00016684,2]
[354211943,1740349866856,-1639.9,0.00016684,2]
[354211944,1740349866867,-664.68,0.00016684,2]
[354211945,1740349866876,-640.97,0.00016684,2]
[354211946,1740349866885,-500.0,0.00016684,2]
[354211947,1740349866894,-500.0,0.00016684,2]
[354211948,1740349866903,-2460.9,0.00016684,2]
[354211949,1740349866912,-1461.34,0.00016684,2]
[354211950,1740349866921,-1119.51,0.00016684,2]
[354211951,1740349866931,-566.65,0.00016684,2]
[354211952,1740349866940,-1538.59,0.00016684,2]
[354211953,1740349866951,-878.9,0.00016684,2]
[354211954,1740349866962,-1824.04,0.00016684,2]
[354211955,1740349866973,-500.0,0.00016684,2]
[354211956,1740349866983,-1470.35,0.00016684,2]
[354211957,1740349866992,-1582.89,0.00016684,2]
[354211958,1740349867001,-1847.63,0.00016684,2]
[354211959,1740349867010,-2678.53,0.00016684,2]
[354211960,1740349867019,-500.0,0.00016684,2]
[354211961,1740349867028,-769.48,0.00016684,2]
[354211962,1740349867038,-500.0,0.00016684,2]
[354211963,1740349867047,-554.7,0.00016684,2]
[354211964,1740349867056,-1610.42,0.00016684,2]
[354211965,1740349867066,-995.83,0.00016684,2]
[354211966,1740349867075,-500.0,0.00016684,2]
[354211967,1740349867084,-1338.31,0.00016684,2]
[354211968,1740349867093,-1308.01,0.00016684,2]
[354211969,1740349867102,-1717.52,0.00016684,2]
[354211970,1740349867110,-3188.14,0.00016684,2]
[354211971,1740349867119,-3533.31,0.00016684,2]
[354211972,1740349867129,-500.0,0.00016684,2]
[354211973,1740349867138,-1861.78,0.00016684,2]
[354211974,1740349867147,-8417.52,0.00016684,2]
[354211975,1740349867156,-2577.89,0.00016684,2]
[354211976,1740349867166,-500.0,0.00016684,2]
[354211977,1740349867175,-500.0,0.00016684,2]
[354211978,1740349867184,-500.0,0.00016684,2]
[354211979,1740349867193,-4381.0,0.00016684,2]
[354211980,1740349867203,-596.64,0.00016684,2]
[354211981,1740349867211,-2183.26,0.00016684,2]
[354211982,1740349867220,-1528.29,0.00016684,2]
[354211983,1740349867229,-1092.71,0.00016684,2]
[354211984,1740349867238,-554.44,0.00016684,2]
[354211985,1740349867247,-1946.14,0.00016684,2]
[354211986,1740349867255,-2935.59,0.00016684,2]
[354211987,1740349867265,-7337.03,0.00016684,2]
[354211988,1740349867273,-1364.9,0.00016684,2]
[354211989,1740349867282,-1174.78,0.00016684,2]
[354211990,1740349867290,-1276.51,0.00016684,2]
[354211991,1740349867299,-620.99,0.00016684,2]
[354211992,1740349867309,-500.0,0.00016684,2]
[354211993,1740349867318,-1306.34,0.00016684,2]
[354211994,1740349867327,-932.88,0.00016684,2]
[354211995,1740349867336,-2300.34,0.00016684,2]
[354211996,1740349867345,-980.06,0.00016684,2]
[354211997,1740349867354,-1469.11,0.00016684,2]
[354211998,1740349867363,-544.26,0.00016684,2]
[354211999,1740349867372,-2856.88,0.00016684,2]
[354212000,1740349867381,-4641.82,0.00016684,2]
[354212001,1740349867389,-500.0,0.00016684,2]
[354212002,1740349867398,-2638.63,0.00016684,2]
[354212003,1740349867407,-500.0,0.00016684,2]
[354212004,1740349867416,-3029.62,0.00016684,2]
[354212005,1740349867425,-500.0,0.00016684,2]
[354212006,1740349867435,-2673.9,0.00016684,2]
[354212007,1740349867444,-500.0,0.00016684,2]
[354212008,1740349867453,-500.0,0.00016684,2]
[354212009,1740349867462,-612.94,0.00016684,2]
[354212010,1740349867471,-3094.41,0.00016684,2]
[354212011,1740349867479,-2414.59,0.00016684,2]
[354212012,1740349867488,-500.0,0.00016684,2]
[354212013,1740349867497,-500.0,0.00016684,2]
[354212014,1740349867508,-2972.96,0.00016684,2]
[354212015,1740349867518,-693.42,0.00016684,2]
[354212016,1740349867527,-1574.92,0.00016684,2]
[354212017,1740349867536,-1174.07,0.00016684,2]
[354212018,1740349867545,-5022.74,0.00016684,2]
[354212019,1740349867558,-647.87,0.00016684,2]
[354212020,1740349867567,-500.0,0.00016684,2]
[354212021,1740349867576,-500.0,0.00016684,2]
[354212022,1740349867585,-906.72,0.00016684,2]
[354212023,1740349867594,-500.0,0.00016684,2]
[354212024,1740349867603,-796.67,0.00016684,2]
[354212025,1740349867612,-500.0,0.00016684,2]
[354212026,1740349867621,-500.0,0.00016684,2]
[354212027,1740349867630,-5290.33,0.00016684,2]
[354212028,1740349867640,-1436.11,0.00016684,2]
[354212029,1740349867649,-500.0,0.00016684,2]
[354212030,1740349867658,-1349.8,0.00016684,2]
[354212031,1740349867668,-6290.39,0.00016684,2]
[354212032,1740349867678,-758.05,0.00016684,2]
[354212033,1740349867687,-2671.9,0.00016684,2]
[354212034,1740349867696,-2196.52,0.00016684,2]
[354212035,1740349867706,-5756.72,0.00016684,2]
[354212036,1740349867715,-4403.16,0.00016684,2]
[354212037,1740349867725,-5706.29,0.00016684,2]
[354212038,1740349867734,-2749.58,0.00016684,2]
[354212039,1740349867744,-526.21,0.00016684,2]
[354212040,1740349867754,-555.29,0.00016684,2]
[354212041,1740349867765,-500.0,0.00016684,2]
[354212042,1740349867776,-2415.31,0.00016684,2]
[354212043,1740349867788,-500.0,0.00016684,2]
[354212044,1740349867799,-3407.13,0.00016684,2]
[354212045,1740349867808,-1418.97,0.00016684,2]
[354212046,1740349867818,-4562.56,0.00016684,2]
[354212047,1740349867827,-4059.09,0.00016684,2]
[354212048,1740349867836,-760.69,0.00016684,2]
[354212049,1740349867845,-500.0,0.00016684,2]
[354212050,1740349867854,-1428.34,0.00016684,2]
[354212051,1740349867863,-874.66,0.00016684,2]
[354212052,1740349867873,-2154.67,0.00016684,2]
[354212053,1740349867882,-4107.53,0.00016684,2]
[354212054,1740349867891,-1576.33,0.00016684,2]
[354212055,1740349867901,-1748.41,0.00016684,2]
[354212056,1740349867910,-500.0,0.00016684,2]
[354212057,1740349867919,-17475.75,0.00016684,2]
[354212058,1740349867928,-500.0,0.00016684,2]
[354212059,1740349867937,-4070.64,0.00016684,2]
[354212060,1740349867946,-2786.27,0.00016684,2]
[354212061,1740349867956,-3159.81,0.00016684,2]
[354212062,1740349867965,-924.33,0.00016684,2]
[354212063,1740349867974,-1525.63,0.00016684,2]
[354212064,1740349867984,-709.02,0.00016684,2]
[354212065,1740349867993,-2272.18,0.00016684,2]
[354212066,1740349868003,-3619.7,0.00016684,2]
[354212067,1740349868012,-4642.12,0.00016684,2]
[354212068,1740349868021,-1679.7,0.00016684,2]
[354212069,1740349868030,-4720.68,0.00016684,2]
[354212070,1740349868039,-500.0,0.00016684,2]
[354212071,1740349868048,-1571.13,0.00016684,2]
[354212072,1740349868057,-3290.16,0.00016684,2]
[354212073,1740349868066,-3917.01,0.00016684,2]
[354212074,1740349868075,-1753.32,0.00016684,2]
[354212075,1740349868084,-4787.87,0.00016684,2]
[354212076,1740349868093,-2096.04,0.00016684,2]
[354212077,1740349868102,-3809.91,0.00016684,2]
[354212078,1740349868111,-683.81,0.00016684,2]
[354212079,1740349868120,-2412.36,0.00016684,2]
[354212080,1740349868131,-4433.62,0.00016684,2]
[354212081,1740349868140,-645.38,0.00016684,2]
[354212082,1740349868149,-1929.52,0.00016684,2]
[354212083,1740349868158,-500.0,0.00016684,2]
[354212084,1740349868167,-2294.55,0.00016684,2]
[354212085,1740349868176,-1697.61,0.00016684,2]
[354212086,1740349868185,-3462.11,0.00016684,2]
[354212087,1740349868194,-707.43,0.00016684,2]
[354212088,1740349868203,-5621.54,0.00016684,2]
[354212089,1740349868211,-3914.54,0.00016684,2]
[354212090,1740349868220,-4223.13,0.00016684,2]
[354212091,1740349868229,-2913.24,0.00016684,2]
[354212092,1740349868238,-500.0,0.00016684,2]
[354212093,1740349868247,-500.0,0.00016684,2]
[354212094,1740349868256,-500.0,0.00016684,2]
[354212095,1740349868265,-3601.17,0.00016684,2]
[354212096,1740349868274,-500.0,0.00016684,2]
[354212097,1740349868283,-1208.42,0.00016684,2]
[354212098,1740349868292,-2154.42,0.00016684,2]
[354212099,1740349868301,-7088.97,0.00016684,2]
[354212100,1740349868310,-500.0,0.00016684,2]
[354212101,1740349868319,-2016.18,0.00016684,2]
[354212102,1740349868327,-4814.39,0.00016684,2]
[354212103,1740349868336,-3404.92,0.00016684,2]
[354212104,1740349868345,-500.0,0.00016684,2]
[354212105,1740349868354,-500.0,0.00016684,2]
[354212106,1740349868363,-5139.97,0.00016684,2]
[354212107,1740349868372,-500.0,0.00016684,2]
[354212108,1740349868382,-4721.46,0.00016684,2]
[354212109,1740349868391,-4384.06,0.00016684,2]
[354212110,1740349868401,-1606.48,0.00016684,2]
[354212111,1740349868410,-500.0,0.00016684,2]
[354212112,1740349868419,-4219.29,0.00016684,2]
[354212113,1740349868427,-500.0,0.00016684,2]
[354212114,1740349868436,-2226.1,0.00016684,2]
[354212115,1740349868445,-703.07,0.00016684,2]
[354212116,1740349868454,-500.0,0.00016684,2]
[354212117,1740349868464,-3249.4,0.00016684,2]
[354212118,1740349868476,-500.0,0.00016684,2]
[354212119,1740349868486,-500.0,0.00016684,2]
[354212120,1740349868495,-500.0,0.00016684,2]
[354212121,1740349868505,-1604.38,0.00016684,2]
[354212122,1740349868519,-5239.84,0.00016684,2]
[354212123,1740349868531,-2505.1,0.00016684,2]
[354212124,1740349868541,-585.37,0.00016684,2]
[354212125,1740349868552,-1246.44,0.00016684,2]
[354212126,1740349868561,-2941.8,0.00016684,2]
[354212127,1740349868572,-1295.66,0.00016684,2]
[354212128,1740349868581,-5072.55,0.00016684,2]
[354212129,1740349868593,-1387.21,0.00016684,2]
[354212130,1740349868604,-9201.19,0.00016684,2]
[354212131,1740349868613,-3681.18,0.00016684,2]
[354212132,1740349868622,-2612.84,0.00016684,2]
[354212133,1740349868631,-3774.54,0.00016684,2]
[354212134,1740349868640,-948.51,0.00016684,2]
[354212135,1740349868650,-500.0,0.00016684,2]
[354212136,1740349868658,-3562.07,0.00016684,2]
[354212137,1740349868668,-6253.12,0.00016684,2]
[354212138,1740349868678,-1983.96,0.00016684,2]
[354212139,1740349868687,-930.43,0.00016684,2]
[354212140,1740349868700,-526.95,0.00016684,2]
[354212141,1740349868709,-500.0,0.00016684,2]
[354212142,1740349868718,-1344.51,0.00016684,2]
[354212143,1740349868727,-500.0,0.00016684,2]
[354212144,1740349868736,-1412.39,0.00016684,2]
[354212145,1740349868745,-4716.74,0.00016684,2]
[354212146,1740349868754,-4536.23,0.00016684,2]
[354212147,1740349868763,-5993.06,0.00016684,2]
[354212148,1740349868773,-500.0,0.00016684,2]
[354212149,1740349868782,-500.0,0.00016684,2]
[354212150,1740349868791,-500.0,0.00016684,2]
[354212151,1740349868800,-1885.48,0.00016684,2]
[354212152,1740349868809,-500.0,0.00016684,2]
[354212153,1740349868818,-500.0,0.00016684,2]
[354212154,1740349868827,-3143.69,0.00016684,2]
[354212155,1740349868836,-3479.65,0.00016684,2]
[354212156,1740349868845,-500.0,0.00016684,2]
[354212157,1740349868854,-6049.51,0.00016684,2]
[354212158,1740349868863,-1400.03,0.00016684,2]
[354212159,1740349868872,-500.0,0.00016684,2]
[354212160,1740349868881,-4633.59,0.00016684,2]
[354212161,1740349868890,-3476.34,0.00016684,2]
[354212162,1740349868899,-3140.36,0.00016684,2]
[354212163,1740349868908,-500.0,0.00016684,2]
[354212164,1740349868917,-500.0,0.00016684,2]
[354212165,1740349868926,-2481.53,0.00016684,2]
[354212166,1740349868935,-8851.15,0.00016684,2]
[354212167,1740349868944,-500.0,0.00016684,2]
[354212168,1740349868953,-500.0,0.00016684,2]
[354212169,1740349868963,-500.0,0.00016684,2]
[354212170,1740349868972,-2581.76,0.00016684,2]
[354212171,1740349868980,-2181.78,0.00016684,2]
[354212172,1740349868990,-2756.2,0.00016684,2]
[354212173,1740349868999,-504.30473122,0.00016684,2]
[354212174,1740349869008,-500.0,0.00016684,2]
[354212175,1740349869018,-290.89,0.00016684,2]
[354212176,1740349869027,-1745.58,0.00016684,2]
[354212177,1740349869036,-3980.89,0.00016684,2]
[354212178,1740349869045,-500.0,0.00016684,2]
[354212179,1740349869054,-5532.19,0.00016684,2]
[354212180,1740349869063,-657.2,0.00016684,2]
[354212181,1740349869071,-2341.48,0.00016684,2]
[354212182,1740349869080,-500.0,0.00016684,2]
[354212183,1740349869089,-4890.16,0.00016684,2]
[354212184,1740349869098,-667.62,0.00016684,2]
[354212185,1740349869107,-500.0,0.00016684,2]
[354212186,1740349869116,-2345.07,0.00016684,2]
[354212187,1740349869125,-500.0,0.00016684,2]
[354212188,1740349869134,-1229.42,0.00016684,2]
[354212189,1740349869142,-517.65,0.00016684,2]
[354212190,1740349869151,-1325.19,0.00016684,2]
[354212191,1740349869160,-500.67,0.00016684,2]
[354212192,1740349869168,-973.9,0.00016684,2]
[354212193,1740349869178,-3825.62,0.00016684,2]
[354212194,1740349869188,-644.39,0.00016684,2]
[354212195,1740349869197,-5219.19,0.00016684,2]
[354212196,1740349869206,-3401.5,0.00016684,2]
[354212197,1740349869215,-1228.65,0.00016684,2]
[354212198,1740349869223,-500.0,0.00016684,2]
[354212199,1740349869232,-9468.28,0.00016684,2]
[354212200,1740349869241,-1584.73,0.00016684,2]
[354212201,1740349869251,-500.0,0.00016684,2]
[354212202,1740349869259,-500.0,0.00016684,2]
[354212203,1740349869268,-1000.0,0.00016686,2]
[354212204,1740349869277,-258.03381503,0.00016693,2]
[354212205,1740349869286,-150.0,0.00016695,2]
[354212206,1740349869295,-150.0,0.00016697,2]
[354212207,1740349869303,-1000.0,0.00016698,2]
[354212208,1740349869312,-150.0,0.00016699,2]
[354212209,1740349869321,-150.0,0.000167,2]
[354212210,1740349869330,-150.0,0.00016701,2]
[354212211,1740349869339,-150.0,0.00016703,2]
[354212212,1740349869348,-150.0,0.00016708,2]
[354212213,1740349869357,-150.0,0.00016711,2]
[354212214,1740349869366,-150.0,0.00016714,2]
[354212215,1740349869376,-150.0,0.00016715,2]
[354212216,1740349869385,-1000.0,0.00016732,2]
[354212217,1740349869394,-150.0,0.00016739,2]
[354212218,1740349869404,-1115.85,0.0001674,2]
[354212219,1740349869413,-150.0,0.00016755,2]
[354212220,1740349869422,-1000.0,0.00016757,2]
[354212221,1740349869431,-150.0,0.00016757,2]
[354212222,1740349869440,-150.0,0.00016763,2]
[354212223,1740349869449,-150.0,0.00016766,2]
[354212224,1740349869459,-500.0,0.00016767,2]
[354212225,1740349869467,-330.13988191,0.00016767,2]
[354212226,1740349869476,-500.0,0.00016767,2]
[354212227,1740349869486,-500.0,0.00016767,2]
[354212228,1740349869495,-500.0,0.00016767,2]
[354212229,1740349869504,-500.0,0.00016767,2]
[354212230,1740349869517,-152.022761,0.00016767,2]
[354212231,1740349869526,-1093.12,0.00016767,2]
[354212232,1740349869535,-1156.11,0.00016767,2]
[354212233,1740349869543,-1348.02,0.00016767,2]
[354212234,1740349869552,-500.0,0.00016767,2]
[354212235,1740349869561,-895.6,0.00016767,2]
[354212236,1740349869570,-516.81,0.00016767,2]
[354212237,1740349869579,-463.50488738,0.00016767,2]
[354212238,1740349869587,-915.35,0.00016767,2]
[354212239,1740349869597,-500.0,0.00016767,2]
[354212240,1740349869606,-500.0,0.00016767,2]
[354212241,1740349869615,-500.0,0.00016767,2]
[354212242,1740349869625,-1694.17,0.00016767,2]
[354212243,1740349869634,-1649.69,0.00016767,2]
[354212244,1740349869643,-500.0,0.00016767,2]
[354212245,1740349869652,-681.06,0.00016767,2]
[354212246,1740349869662,-793.26,0.00016767,2]
[354212247,1740349869671,-500.0,0.00016767,2]
[354212248,1740349869680,-500.0,0.00016767,2]
[354212249,1740349869690,-500.0,0.00016767,2]
[354212250,1740349869699,-500.0,0.00016767,2]
[354212251,1740349869708,-500.0,0.00016767,2]
[354212252,1740349869717,-645.41,0.00016767,2]
[354212253,1740349869727,-500.0,0.00016767,2]
[354212254,1740349869736,-500.0,0.00016767,2]
[354212255,1740349869745,-523.26,0.00016767,2]
[354212256,1740349869754,-798.0,0.00016767,2]
[354212257,1740349869763,-500.0,0.00016767,2]
[354212258,1740349869773,-500.0,0.00016767,2]
[354212259,1740349869782,-500.0,0.00016767,2]
[354212260,1740349869791,-1129.2,0.00016767,2]
[354212261,1740349869800,-500.0,0.00016767,2]
[354212262,1740349869809,-500.0,0.00016767,2]
[354212263,1740349869818,-500.0,0.00016767,2]
[354212264,1740349869827,-500.0,0.00016767,2]
[354212265,1740349869836,-500.0,0.00016767,2]
[354212266,1740349869845,-1431.86,0.00016767,2]
[354212267,1740349869854,-1421.57,0.00016767,2]
[354212268,1740349869863,-500.0,0.00016767,2]
[354212269,1740349869872,-500.0,0.00016767,2]
[354212270,1740349869882,-500.0,0.00016767,2]
[354212271,1740349869892,-500.0,0.00016767,2]
[354212272,1740349869901,-500.0,0.00016767,2]
[354212273,1740349869909,-500.0,0.00016767,2]
[354212274,1740349869918,-763.43,0.00016767,2]
[354212275,1740349869927,-863.75,0.00016767,2]
[354212276,1740349869936,-1090.21,0.00016767,2]
[354212277,1740349869945,-500.0,0.00016767,2]
[354212278,1740349869954,-649.37,0.00016767,2]
[354212279,1740349869963,-609.6,0.00016767,2]
[354212280,1740349869972,-238.80330764,0.00016767,2]
[354212281,1740349869981,-500.0,0.00016767,2]
[354212282,1740349869989,-1597.72,0.00016767,2]
[354212283,1740349869999,-500.0,0.00016767,2]
[354212284,1740349870008,-500.0,0.00016767,2]
[354212285,1740349870017,-500.0,0.00016767,2]
[354212286,1740349870026,-500.0,0.00016767,2]
[354212287,1740349870040,-1440.9,0.00016767,2]
[354212288,1740349870050,-500.0,0.00016767,2]
[354212289,1740349870059,-592.49,0.00016767,2]
[354212290,1740349870067,-1192.98,0.00016767,2]
[354212291,1740349870076,-500.0,0.00016767,2]
[354212292,1740349870085,-500.0,0.00016767,2]
[354212293,1740349870094,-500.0,0.00016767,2]
[354212294,1740349870103,-1240.88,0.00016767,2]
[354212295,1740349870112,-782.65,0.00016767,2]
[354212296,1740349870121,-172.270567,0.00016767,2]
[354212297,1740349870130,-1118.85,0.00016767,2]
[354212298,1740349870140,-500.0,0.00016767,2]
[354212299,1740349870149,-500.0,0.00016767,2]
[354212300,1740349870158,-500.0,0.00016767,2]
[354212301,1740349870167,-500.0,0.00016767,2]
[354212302,1740349870176,-1621.04,0.00016767,2]
[354212303,1740349870185,-500.0,0.00016767,2]
[354212304,1740349870194,-614.67,0.00016767,2]
[354212305,1740349870204,-1198.36,0.00016767,2]
[354212306,1740349870213,-500.0,0.00016767,2]
[354212307,1740349870223,-608.12,0.00016767,2]
[354212308,1740349870233,-500.0,0.00016767,2]
[354212309,1740349870242,-671.15,0.00016767,2]
[354212310,1740349870251,-564.11,0.00016767,2]
[354212311,1740349870260,-500.0,0.00016767,2]
[354212312,1740349870268,-500.0,0.00016767,2]
[354212313,1740349870278,-500.0,0.00016767,2]
[354212314,1740349870287,-500.0,0.00016767,2]
[354212315,1740349870296,-500.0,0.00016767,2]
[354212316,1740349870416,-904.88,0.00016767,2]